fUSD/lending_fUSD_20260419
["ID","MTS","AMOUNT","RATE_DAILY","PERIOD"]
[420803637,1776533446476,-1682.0,0.00010321,2]
[420803638,1776533446485,-853.8626954,0.00010375,2]
[420803639,1776533446494,-433.0,0.00010432,2]
[420803640,1776533446504,-240.74,0.00010474,2]
[420803641,1776533446513,-151.0,0.00010474,2]
[420803642,1776533446522,-1240.38118064,0.00010548,2]
[420803643,1776533446532,-150.0,0.0001062,2]
[420803644,1776533446541,-500.0,0.00010699,2]
[420803645,1776533446550,-18685.06985263,0.000107,2]
[420803646,1776533446646,-42962.60775131,0.000107,2]
[420803647,1776533446656,-190.5225199,0.00010701,2]
[420803648,1776533446666,-1013.9216106,0.00010715,2]
[420803649,1776533446675,-150.0,0.00010782,2]
[420803650,1776533446686,-150.0,0.00010782,2]
[420803651,1776533446696,-982.6358673,0.000108,2]
[420803652,1776533446707,-1400.0,0.000109,3]
[420803653,1776533446716,-150.0,0.0001092,2]
[420803654,1776533446727,-150.0,0.00010959,2]
[420803655,1776533446736,-51766.4599358,0.00010971,2]
[420803656,1776533446749,-1600.0,0.00010982,2]
[420803657,1776533446758,-16622.49358257,0.00011099,2]
[420803658,1776533446768,-226.2364913,0.00011116,2]
[420803659,1776533446777,-160.0,0.00011134,2]
[420803660,1776533446786,-16622.49358253,0.00011136,2]
[420803661,1776533446797,-150.0,0.0001122,2]
[420803662,1776533446808,-219.2556984,0.00011225,2]
[420803663,1776533446817,-2000.0,0.00011301,2]
[420803664,1776533446827,-250.0,0.00011301,2]
[420803665,1776533446838,-11550.6584958,0.00011429,2]
[420803666,1776533446847,-736.0,0.00011475,2]
[420803667,1776533446856,-176.27,0.00011507,2]
[420803668,1776533446866,-1065.75,0.00011507,2]
[420803669,1776533446875,-150.0,0.0001152,2]
[420803670,1776533446886,-150.0,0.0001158,30]
[420803671,1776533446896,-150.0,0.0001182,2]
[420803672,1776533446907,-1600.0,0.0001198,2]
[420803673,1776533446919,-150.0,0.0001212,2]
[420803674,1776533446928,-150.0,0.00012287,30]
[420803675,1776533446939,-2000.0,0.00012329,2]
[420803676,1776533446948,-150.0,0.0001242,2]
[420803677,1776533446959,-189.23767338,0.00012528,2]
[420803678,1776533446968,-198.0,0.00012622,2]
[420803679,1776533446978,-150.0,0.0001272,2]
[420803680,1776533446987,-150.0,0.00012993,30]
[420803681,1776533446997,-150.0,0.0001302,2]
[420803682,1776533447007,-160.0,0.00013193,2]
[420803683,1776533447016,-1271.17382,0.00013193,2]
[420803684,1776533447025,-2382.34764,0.00013193,2]
[420803685,1776533447034,-160.0,0.00013193,2]
[420803686,1776533447044,-968.467437,0.00013193,2]
[420803687,1776533447053,-1776.934875,0.00013193,2]
[420803688,1776533447062,-160.0,0.00013193,2]
[420803689,1776533447071,-545.999125,0.00013193,2]
[420803690,1776533447081,-931.998251,0.00013193,2]
[420803691,1776533447090,-1465.0,0.00013268,2]
[420803692,1776533447099,-150.0,0.0001332,2]
[420803693,1776533447109,-1640.95842088,0.00013362,2]
[420803694,1776533447119,-3240.0,0.00013425,2]
[420803695,1776533447128,-16622.49358253,0.00013457,2]
[420803696,1776533447137,-1500.0,0.00013462,2]
[420803697,1776533447146,-1500.0,0.00013462,2]
[420803698,1776533447156,-1500.0,0.00013462,2]
[420803699,1776533447165,-1500.0,0.00013462,2]
[420803700,1776533447175,-150.0,0.0001362,2]
[420803701,1776533447184,-500.0,0.00013698,2]
[420803702,1776533447202,-500.0,0.00013698,2]
[420803703,1776533447214,-500.0,0.00013698,2]
[420803704,1776533447223,-500.0,0.00013698,2]
[420803705,1776533447233,-500.0,0.00013698,2]
[420803706,1776533447243,-500.0,0.00013698,2]
[420803707,1776533447252,-200.0,0.00013699,2]
[420803708,1776533447262,-166.66,0.00013699,2]
[420803709,1776533447271,-373.0455677,0.00013699,2]
[420803710,1776533447281,-166.66,0.00013836,2]
[420803711,1776533447291,-1733.418845,0.00013852,2]
[420803712,1776533447300,-1320.637414,0.00013852,7]
[420803713,1776533447310,-744.544262,0.00013852,7]
[420803714,1776533447319,-200.0,0.0001392,2]
[420803715,1776533447329,-166.66,0.00013973,2]
[420803716,1776533447340,-161.086658,0.00013973,2]
[420803717,1776533447349,-166.66,0.0001411,2]
[420803718,1776533447359,-200.0,0.0001422,2]
[420803719,1776533447369,-166.66,0.00014247,2]
[420803720,1776533447378,-1465.0,0.00014268,2]
[420803721,1776533447388,-150.0,0.00014318,2]
[420803722,1776533447399,-214.888183,0.00014319,2]
[420803723,1776533447408,-166.66,0.00014384,2]
[420803724,1776533447417,-200.0,0.0001452,2]
[420803725,1776533447427,-500.0,0.00014613,2]
[420803726,1776533447436,-637.21346364,0.00014613,2]
[420803727,1776533447447,-500.0,0.00014613,2]
[420803728,1776533447457,-500.0,0.00014613,2]
[420803729,1776533447467,-500.0,0.00014613,2]
[420803730,1776533447478,-160.0,0.00014721,2]
[420803731,1776533447489,-364.009269,0.00014721,2]
[420803732,1776533447499,-568.018538,0.00014721,2]
[420803733,1776533447511,-200.0,0.0001482,2]
[420803734,1776533447521,-150.281,0.00015022,2]
[420803735,1776533447532,-1265.0,0.00015022,2]
[420803736,1776533447541,-200.0,0.0001512,2]
[420803737,1776533447551,-600.918533,0.00015172,2]
[420803738,1776533447560,-686.731455,0.00015172,7]
[420803739,1776533447570,-387.163016,0.00015172,7]
[420803740,1776533447579,-1465.0,0.00015268,2]
[420803741,1776533447589,-453.55928386,0.0001539,3]
[420803742,1776533447599,-200.0,0.0001542,2]
[420803743,1776533447609,-744.564414,0.00015457,2]
[420803744,1776533447619,-4000.0,0.00015507,2]
[420803745,1776533447628,-200.0,0.0001572,2]
[420803746,1776533447638,-16622.49358253,0.00015777,2]
[420803747,1776533447648,-500.0,0.0001589,30]
[420803748,1776533447658,-500.0,0.0001589,30]
[420803749,1776533447667,-385.40743909,0.0001589,30]
[420803750,1776533447678,-2000.0,0.0001589,2]
[420803751,1776533447687,-500.0,0.00015894,2]
[420803752,1776533447697,-4000.0,0.00015895,2]
[420803753,1776533447706,-176.27,0.00015945,2]
[420803754,1776533447716,-200.0,0.0001602,2]
[420803755,1776533447726,-1215.79641,0.00016063,7]
[420803756,1776533447735,-1465.0,0.00016268,2]
[420803757,1776533447745,-4000.0,0.00016282,2]
[420803758,1776533447754,-200.0,0.0001632,2]
[420803759,1776533447764,-2212.14226552,0.000165,2]
[420803760,1776533447774,-200.0,0.0001662,2]
[420803761,1776533447784,-4000.0,0.0001667,2]
[420803762,1776533447793,-1349.0,0.00016767,2]
[420803763,1776533447802,-200.0,0.0001692,2]
[420803764,1776533447812,-387.173495,0.0001693,2]
[420803765,1776533447826,-622.0,0.00016942,2]
[420803766,1776533447836,-6029.0,0.00016942,2]
[420803767,1776533447846,-4000.0,0.00017058,2]
[420803768,1776533447856,-323.571517,0.00017151,2]
[420803769,1776533447865,-246.518984,0.00017151,7]
[420803770,1776533447875,-200.0,0.0001722,2]
[420803771,1776533447885,-260.0,0.00017255,2]
[420803772,1776533447895,-1465.0,0.00017268,2]
[420803773,1776533447905,-632.214133,0.00017592,7]
[420803774,1776533447915,-1263.0,0.00018022,2]
[420803775,1776533447925,-150.0,0.00018022,2]
[420803776,1776533447934,-16622.49358253,0.00018098,2]
[420803777,1776533447944,-1471.0,0.00018268,2]
[420803778,1776533447954,-150.13251298,0.0001837,2]
[420803779,1776533447964,-150.0,0.0001837,2]
[420803780,1776533447975,-150.0,0.0001837,2]
[420803781,1776533447984,-150.0,0.0001837,2]
[420803782,1776533447994,-150.0,0.0001837,2]
[420803783,1776533448005,-259.74988373,0.0001837,2]
[420803784,1776533448015,-150.0,0.0001837,2]
[420803785,1776533448025,-150.00000001,0.0001837,2]
[420803786,1776533448034,-150.0,0.0001837,2]
[420803787,1776533448044,-150.0,0.0001837,2]
[420803788,1776533448053,-150.0,0.00018661,2]
[420803789,1776533448062,-150.0,0.00018778,2]
[420803790,1776533448072,-150.0,0.0001888,2]
[420803791,1776533448081,-150.0,0.00018953,2]
[420803792,1776533448092,-150.0,0.0001905,2]
[420803793,1776533448102,-1640.95842086,0.00019131,2]
[420803794,1776533448112,-150.0,0.00019186,4]
[420803795,1776533448123,-162.35,0.000192,2]
[420803796,1776533448132,-150.0,0.00019245,4]
[420803797,1776533448141,-150.99,0.00019339,2]
[420803798,1776533448151,-9999.99,0.00019339,2]
[420803799,1776533448160,-7073.16,0.00019339,2]
[420803800,1776533448170,-299.99,0.00019339,7]
[420803801,1776533448179,-1405.38,0.00019339,2]
[420803802,1776533448189,-9999.99,0.00019339,2]
[420803803,1776533448198,-150.0,0.0001939,4]
[420803804,1776533448208,-150.0,0.0001939,4]
[420803805,1776533448218,-19151.66,0.000194,2]
[420803806,1776533448228,-150.0,0.00019536,4]
[420803807,1776533448237,-150.0,0.00019595,4]
[420803808,1776533448247,-160.37,0.000196,2]
[420803809,1776533448257,-150.0,0.00019731,4]
[420803810,1776533448266,-1349.0,0.00019767,2]
[420803811,1776533448276,-150.0,0.00019828,4]
[420803812,1776533448285,-226.948663,0.00019887,7]
[420803813,1776533448295,-150.0,0.00019901,4]
[420803814,1776533448305,-6028.0,0.00019942,2]
[420803815,1776533448315,-217.0,0.0002,2]
[420803816,1776533448325,-690.0,0.0002,2]
[420803817,1776533448334,-158.0,0.0002,2]
[420803818,1776533448344,-463.0,0.0002,2]
[420803819,1776533448355,-198.0,0.0002,2]
[420803820,1776533448364,-200.0,0.0002,10]
[420803821,1776533448374,-825.0,0.0002,30]
[420803822,1776533448383,-150.0,0.00020003,4]
[420803823,1776533448395,-300.0,0.000201,10]
[420803824,1776533448405,-150.0,0.00020119,4]
[420803825,1776533448414,-162.35,0.000202,2]
[420803826,1776533448424,-176.27,0.00020384,2]
[420803827,1776533448434,-150.0,0.00020411,4]
[420803828,1776533448448,-150.0,0.00020411,4]
[420803829,1776533448458,-150.0,0.00020411,4]
[420803830,1776533448469,-150.00000001,0.00020411,4]
[420803831,1776533448495,-150.0,0.00020411,4]
[420803832,1776533448506,-150.0,0.00020411,4]
[420803833,1776533448516,-16622.49358253,0.00020418,2]
[420803834,1776533448527,-373.39,0.00020428,2]
[420803835,1776533448537,-19151.66,0.000205,2]
[420803836,1776533448546,-217.0,0.00021,2]
[420803837,1776533448556,-690.0,0.00021,2]
[420803838,1776533448566,-164.0,0.00021,2]
[420803839,1776533448575,-463.0,0.00021,2]
[420803840,1776533448585,-198.0,0.00021,2]
[420803841,1776533448595,-2388.94382424,0.00021918,2]
[420803842,1776533448984,-450.89406968,0.00021918,2]
[420803843,1776533448996,-804.94870996,0.00021918,2]
[420803844,1776533449098,-0.50965052,0.00021918,2]
[420803845,1776533449110,-1123.71239335,0.00021918,2]
[420803846,1776533449134,-230.99135225,0.00021918,2]
[420803847,1776533449144,-217.0,0.00022,2]
[420803848,1776533449153,-690.0,0.00022,2]
[420803849,1776533449163,-463.0,0.00022,2]
[420803850,1776533449172,-198.0,0.00022,2]
[420803851,1776533449182,-160.37,0.00022,7]
[420803852,1776533449192,-485.87456157,0.00022181,68]
[420803853,1776533449201,-825.0,0.00022181,30]
[420803854,1776533449210,-16622.49358253,0.00022739,2]
[420803855,1776533449219,-1349.0,0.00022767,2]
[420803856,1776533449229,-162.35,0.000228,7]
[420803857,1776533449238,-217.0,0.00023,2]
[420803858,1776533449247,-690.0,0.00023,2]
[420803859,1776533449257,-463.0,0.00023,2]
[420803860,1776533449266,-198.0,0.00023,2]
[420803861,1776533449275,-260.0,0.00023048,4]
[420803862,1776533449285,-1116.0,0.00023101,2]
[420803863,1776533449294,-500.0,0.00023999,2]
[420803864,1776533449304,-217.0,0.00024,2]
[420803865,1776533449314,-690.0,0.00024,2]
[420803866,1776533449323,-463.0,0.00024,2]
[420803867,1776533449332,-198.0,0.00024,2]
[420803868,1776533449341,-19151.66,0.00024,7]
[420803869,1776533449351,-1116.0,0.00024317,2]
[420803870,1776533449360,-825.0,0.00024361,60]
[420803871,1776533449370,-159.94178687,0.0002463,2]
[420803872,1776533449379,-150.0,0.00024658,4]
[420803873,1776533449389,-1000.0,0.00024658,2]
[420803874,1776533449398,-176.27,0.00024822,2]
[420803875,1776533449407,-648.12115106,0.0002489,2]
[420803876,1776533449416,-172521.37619821,0.000249,3]
[420803877,1776533449430,-98167.06086379,0.000249,3]
[420803878,1776533449440,-1640.95842086,0.000249,2]
[420803879,1776533449450,-217.0,0.00025,2]
[420803880,1776533449460,-694.0,0.00025,2]
[420803881,1776533449469,-471.0,0.00025,2]
[420803882,1776533449478,-214.0,0.00025,2]
[420803883,1776533449487,-177.6802818,0.00025011,2]
[420803884,1776533449497,-150.0,0.00025049,4]
[420803885,1776533449506,-8357.83570897,0.00025059,2]
[420803886,1776533449518,-8264.65787356,0.00025059,2]
[420803887,1776533449527,-150.0,0.0002544,4]
[420803888,1776533449536,-1116.0,0.00025597,2]
[420803889,1776533449545,-299.693,0.00025767,2]
[420803890,1776533449554,-150.0,0.00025832,7]
[420803891,1776533449563,-7.66912644,0.000259,7]
[420803892,1776533493564,4580.856711,0.00027708,120]
[420803893,1776533568173,184.02,0.000136,120]
[420803894,1776533597520,2000.0,0.00027297,120]
[420803895,1776533646581,2818.044324,0.00027342,120]
[420803896,1776533652448,400.0,0.00028,120]
[420803897,1776533680456,500.0,0.0003287,120]
[420803898,1776533698291,509.94389,0.00026849,120]
[420803899,1776533737504,173.016677,0.00026849,120]
[420803900,1776533768591,150.0,0.00028971,120]
[420803901,1776533769428,225.0,0.00028971,120]
[420803902,1776533775575,250.0,0.00028971,120]
[420803903,1776533776343,250.0,0.00028971,120]
[420803904,1776533777135,171.0,0.00028971,120]
[420803905,1776533783615,1866.992804,0.00026849,120]
[420803906,1776533853810,830.316632,0.00026849,120]
[420803907,1776533893167,394.0,0.00028971,120]
[420803908,1776533997869,550.096093,0.00026797,120]
[420803909,1776534011263,375.0,0.00028971,120]
[420803910,1776534051625,186.639746,0.00026797,120]
[420803911,1776534057177,303.955196,0.00026797,120]
[420803912,1776534127848,375.0,0.00028971,120]
[420803913,1776534132286,268.0,0.00028971,120]
[420803918,1776534476459,150.0,0.00032877,120]
[420803919,1776534585334,-500.0,0.0004399,120]
[420803920,1776534585518,-500.0,0.0004399,120]
[420803921,1776534585708,-500.0,0.0004399,120]
[420803922,1776534585897,-500.0,0.0004399,120]
[420803923,1776534586084,-500.0,0.0004399,120]
[420803924,1776534586266,-500.0,0.0004399,120]
[420803925,1776534586448,-500.0,0.0004399,120]
[420803926,1776534586641,-500.0,0.0004399,120]
[420803927,1776534586828,-500.0,0.0004399,120]
[420803928,1776534587016,-500.0,0.0004399,120]
[420803929,1776534587199,-500.0,0.0004399,120]
[420803930,1776534587379,-500.0,0.0004399,120]
[420803931,1776534587565,-500.0,0.0004399,120]
[420803932,1776534587752,-500.0,0.0004399,120]
[420803933,1776534587937,-500.0,0.0004399,120]
[420803934,1776534588125,-500.0,0.0004399,120]
[420803935,1776534588306,-500.0,0.0004399,120]
[420803936,1776534588485,-500.0,0.0004399,120]
[420803937,1776534588675,-323.710176,0.0004399,120]
[420803938,1776534588856,-12310.84,0.0004399,120]
[420803939,1776534589041,-500.0,0.0004399,120]
[420803940,1776534589221,-500.0,0.0004399,120]
[420803941,1776534589403,-500.0,0.0004399,120]
[420803942,1776534589589,-500.0,0.0004399,120]
[420803943,1776534589774,-500.0,0.0004399,120]
[420803944,1776534589963,-500.0,0.0004399,120]
[420803945,1776534590144,-500.0,0.0004399,120]
[420803946,1776534590329,-500.0,0.0004399,120]
[420803947,1776534590516,-500.0,0.0004399,120]
[420803948,1776534590705,-500.0,0.0004399,120]
[420803949,1776534590889,-500.0,0.0004399,120]
[420803950,1776534591072,-300.58,0.0004399,120]
[420803951,1776534591243,-500.0,0.0004399,120]
[420803952,1776534591408,-500.0,0.0004399,120]
[420803953,1776534591581,-500.0,0.0004399,120]
[420803954,1776534591751,-500.0,0.0004399,120]
[420803955,1776534591925,-500.0,0.0004399,120]
[420803956,1776534592100,-501.457828,0.0004399,120]
[420803957,1776534592279,-500.0,0.0004399,120]
[420803958,1776534592452,-500.0,0.0004399,120]
[420803959,1776534592632,-500.0,0.0004399,120]
[420803960,1776534592815,-500.0,0.0004399,120]
[420803961,1776534592992,-500.0,0.0004399,120]
[420803962,1776534593163,-500.0,0.0004399,120]
[420803963,1776534593329,-500.0,0.0004399,120]
[420803964,1776534593498,-500.0,0.0004399,120]
[420803965,1776534593674,-500.0,0.0004399,120]
[420803966,1776534593847,-500.0,0.0004399,120]
[420803967,1776534594022,-500.0,0.0004399,120]
[420803968,1776534594189,-500.0,0.0004399,120]
[420803969,1776534594363,-500.0,0.0004399,120]
[420803970,1776534594535,-500.0,0.0004399,120]
[420803971,1776534594712,-500.0,0.0004399,120]
[420803972,1776534594886,-500.0,0.0004399,120]
[420803973,1776534595061,-500.0,0.0004399,120]
[420803974,1776534595228,-500.0,0.0004399,120]
[420803975,1776534595397,-500.0,0.0004399,120]
[420803976,1776534595572,-500.0,0.0004399,120]
[420803977,1776534595749,-2000.0,0.0004399,120]
[420803978,1776534595925,-156.63854162,0.0004399,120]
[420803979,1776534596107,-997.962974,0.0004399,120]
[420803980,1776534596288,-500.0,0.0004399,120]
[420803981,1776534596465,-500.0,0.0004399,120]
[420803982,1776534596656,-500.0,0.0004399,120]
[420803983,1776534596835,-500.0,0.0004399,120]
[420803984,1776534597014,-1139.0,0.0004399,120]
[420803985,1776534597212,-1139.0,0.0004399,120]
[420803986,1776534597386,-1139.0,0.0004399,120]
[420803987,1776534597565,-1139.0,0.0004399,120]
[420803988,1776534597743,-1139.0,0.0004399,120]
[420803989,1776534597926,-1139.0,0.0004399,120]
[420803990,1776534598100,-1139.0,0.0004399,120]
[420803991,1776534598271,-1139.0,0.0004399,120]
[420803992,1776534598440,-1139.0,0.0004399,120]
[420803993,1776534598619,-1139.0,0.0004399,120]
[420803994,1776534598797,-1139.0,0.0004399,120]
[420803995,1776534598979,-285.45,0.0004399,120]
[420803996,1776534599156,-69071.89115367,0.0004399,120]
[420803997,1776534599333,-2725.86,0.0004399,120]
[420803998,1776534599516,-5000.0,0.0004399,120]
[420803999,1776534599699,-5000.0,0.0004399,120]
[420804000,1776534599890,-500.0,0.0004399,120]
[420804001,1776534600068,-500.0,0.0004399,120]
[420804002,1776534600243,-500.0,0.0004399,120]
[420804003,1776534600421,-876.2692624,0.0004399,120]
[420804004,1776534600604,-500.0,0.0004399,120]
[420804005,1776534600800,-500.0,0.0004399,120]
[420804006,1776534600986,-911.9236071,0.0004399,120]
[420804007,1776534601155,-500.0,0.0004399,120]
[420804008,1776534601331,-500.0,0.0004399,120]
[420804009,1776534601512,-500.0,0.0004399,120]
[420804010,1776534601698,-500.0,0.0004399,120]
[420804011,1776534601878,-500.0,0.0004399,120]
[420804012,1776534602057,-500.0,0.0004399,120]
[420804013,1776534602234,-500.0,0.0004399,120]
[420804014,1776534602413,-270.3706924,0.0004399,120]
[420804015,1776534602596,-725.5347276,0.0004399,120]
[420804016,1776534602780,-500.0,0.0004399,120]
[420804017,1776534602961,-500.0,0.0004399,120]
[420804018,1776534603140,-500.0,0.0004399,120]
[420804019,1776534603317,-500.0,0.0004399,120]
[420804020,1776534603492,-500.0,0.0004399,120]
[420804021,1776534603675,-843.6147989,0.0004399,120]
[420804022,1776534603868,-1326.5096477,0.0004399,120]
[420804023,1776534604053,-191.3748004,0.0004399,120]
[420804024,1776534604236,-655.9450404,0.0004399,120]
[420804025,1776534604415,-500.0,0.0004399,120]
[420804026,1776534604597,-992.5461404,0.0004399,120]
[420804027,1776534604782,-474.6708313,0.0004399,120]
[420804028,1776534604967,-500.0,0.0004399,120]
[420804029,1776534605150,-200.9948879,0.0004399,120]
[420804030,1776534605330,-500.0,0.0004399,120]
[420804031,1776534605513,-767.5713342,0.0004399,120]
[420804032,1776534605705,-8635.43397527,0.0004399,120]
[420804033,1776534605893,-8635.43397527,0.0004399,120]
[420804034,1776534606076,-8635.43397527,0.0004399,120]
[420804035,1776534606260,-8635.43397526,0.0004399,120]
[420804036,1776534606445,-8635.43397526,0.0004399,120]
[420804037,1776534606631,-8635.43397526,0.0004399,120]
[420804038,1776534606823,-8635.43397526,0.0004399,120]
[420804039,1776534607015,-8635.43397526,0.0004399,120]
[420804040,1776534607210,-8635.43397526,0.0004399,120]
[420804041,1776534607403,-8635.43397526,0.0004399,120]
[420804042,1776534607606,-8635.43397526,0.0004399,120]
[420804043,1776534607797,-8635.43397526,0.0004399,120]
[420804044,1776534607989,-8635.43397526,0.0004399,120]
[420804045,1776534608178,-8635.43397526,0.0004399,120]
[420804046,1776534608371,-500.0,0.0004399,120]
[420804047,1776534608564,-500.0,0.0004399,120]
[420804048,1776534608755,-315.05433068,0.0004399,120]
[420804049,1776534608942,-6656.673753,0.0004399,120]
[420804050,1776534609126,-1930.2,0.0004399,120]
[420804051,1776534609311,-1930.2,0.0004399,120]
[420804052,1776534609493,-1930.2,0.0004399,120]
[420804053,1776534609686,-1930.2,0.0004399,120]
[420804054,1776534609871,-1930.2,0.0004399,120]
[420804055,1776534610062,-1930.2,0.0004399,120]
[420804056,1776534610242,-1930.2,0.0004399,120]
[420804057,1776534610425,-1930.2,0.0004399,120]
[420804058,1776534610609,-1930.2,0.0004399,120]
[420804059,1776534610798,-1930.2,0.0004399,120]
[420804060,1776534610983,-1930.2,0.0004399,120]
[420804061,1776534611169,-1930.2,0.0004399,120]
[420804062,1776534611353,-1930.2,0.0004399,120]
[420804063,1776534611540,-1930.2,0.0004399,120]
[420804064,1776534611729,-1930.2,0.0004399,120]
[420804065,1776534611911,-1930.2,0.0004399,120]
[420804066,1776534612086,-1930.2,0.0004399,120]
[420804067,1776534612263,-1930.2,0.0004399,120]
[420804068,1776534612446,-1930.2,0.0004399,120]
[420804069,1776534612643,-1930.2,0.0004399,120]
[420804070,1776534612834,-1930.2,0.0004399,120]
[420804071,1776534613025,-1930.2,0.0004399,120]
[420804072,1776534613210,-1930.2,0.0004399,120]
[420804073,1776534613403,-1930.23404292,0.0004399,120]
[420804074,1776534613590,-500.0,0.0004399,120]
[420804075,1776534613776,-1139.0,0.0004399,120]
[420804076,1776534613965,-1139.0,0.0004399,120]
[420804077,1776534614154,-1139.0,0.0004399,120]
[420804078,1776534614342,-1139.0,0.0004399,120]
[420804079,1776534614535,-1139.0,0.0004399,120]
[420804080,1776534614734,-1139.0,0.0004399,120]
[420804081,1776534614930,-1139.0,0.0004399,120]
[420804082,1776534615124,-1139.0,0.0004399,120]
[420804083,1776534615320,-887.97,0.0004399,120]
[420804084,1776534615514,-500.0,0.0004399,120]
[420804085,1776534615719,-500.0,0.0004399,120]
[420804086,1776534615906,-500.0,0.0004399,120]
[420804087,1776534616096,-500.0,0.0004399,120]
[420804088,1776534616281,-500.0,0.0004399,120]
[420804089,1776534616469,-500.0,0.0004399,120]
[420804090,1776534616660,-150.0,0.0004399,120]
[420804091,1776534616852,-500.0,0.0004399,120]
[420804092,1776534617043,-500.0,0.0004399,120]
[420804093,1776534617227,-549.64,0.0004399,120]
[420804094,1776534617414,-597.38,0.0004399,120]
[420804095,1776534617609,-500.0,0.0004399,120]
[420804096,1776534618780,-500.0,0.0004399,120]
[420804097,1776534618972,-500.0,0.0004399,120]
[420804098,1776534619165,-587.83,0.0004399,120]
[420804099,1776534619366,-500.0,0.0004399,120]
[420804100,1776534619561,-407.16908571,0.0004399,120]
[420804101,1776534619755,-500.0,0.0004399,120]
[420804102,1776534619951,-195.87,0.0004399,120]
[420804103,1776534620141,-500.0,0.0004399,120]
[420804104,1776534620332,-500.0,0.0004399,120]
[420804105,1776534620521,-500.0,0.0004399,120]
[420804106,1776534620717,-479.05,0.0004399,120]
[420804107,1776534620911,-500.0,0.0004399,120]
[420804108,1776534621104,-500.0,0.0004399,120]
[420804109,1776534621294,-500.0,0.0004399,120]
[420804110,1776534621486,-216.26,0.0004399,120]
[420804111,1776534621679,-500.0,0.0004399,120]
[420804112,1776534621875,-500.0,0.0004399,120]
[420804113,1776534622069,-500.0,0.0004399,120]
[420804114,1776534622269,-500.0,0.0004399,120]
[420804115,1776534622466,-500.0,0.0004399,120]
[420804116,1776534622667,-500.0,0.0004399,120]
[420804117,1776534622868,-1782.16,0.0004399,120]
[420804118,1776534623073,-168.96,0.0004399,120]
[420804119,1776534623263,-1782.16,0.0004399,120]
[420804120,1776534623458,-1782.16,0.0004399,120]
[420804121,1776534623667,-1782.16,0.0004399,120]
[420804122,1776534623875,-500.0,0.0004399,120]
[420804123,1776534624096,-1782.16,0.0004399,120]
[420804124,1776534624316,-1782.16,0.0004399,120]
[420804125,1776534624510,-1782.16,0.0004399,120]
[420804126,1776534624706,-1782.16,0.0004399,120]
[420804127,1776534624897,-1782.16,0.0004399,120]
[420804128,1776534625088,-1782.16,0.0004399,120]
[420804129,1776534625277,-1782.16,0.0004399,120]
[420804130,1776534625468,-500.0,0.0004399,120]
[420804131,1776534625659,-1782.16,0.0004399,120]
[420804132,1776534625851,-1782.16,0.0004399,120]
[420804133,1776534626050,-1782.16,0.0004399,120]
[420804134,1776534626241,-1782.16,0.0004399,120]
[420804135,1776534626430,-500.0,0.0004399,120]
[420804136,1776534626628,-1782.16,0.0004399,120]
[420804137,1776534626830,-1782.16,0.0004399,120]
[420804138,1776534627028,-500.0,0.0004399,120]
[420804139,1776534627220,-445.33321516,0.0004399,120]
[420804140,1776534627411,-1782.16,0.0004399,120]